[Event "67th Mexican-ch Open 2022"]
[Site "Chihuahua"]
[Date "2022.04.14"]
[Round "3.3"]
[White "Cordova, Emilio"]
[Black "Benitez Lozano, Javier"]
[Result "1-0"]
[ECO "A30"]
[WhiteElo "2534"]
[BlackElo "2309"]
[Annotator "TA"]
[PlyCount "77"]
[EventDate "2022.04.12"]
[EventType "swiss"]
[EventCountry "MEX"]
[SourceTitle "playchess.com"]
[Source "ChessBase"]
[SourceQuality "1"]
[TimeControl "5400+30"]

{[%evp 26,77,78,22,36,33,57,8,66,54,81,24,162,161,162,156,159,160,182,150,182,171,231,226,233,226,341,373,366,370,373,358,351,356,342,346,781,556,797,801,791,773,892,867,2503,2376,6805,6937,4822,3320,29984,29985,29987,29975]} 1. Nf3 {[%emt 0:00:05]} Nf6 {[%emt 0:00:56]} 2. g3 {[%emt 0:02:11]} b6 {[%emt 0:01:34]} 3. Bg2 {[%emt 0:00:18]} Bb7 {[%emt 0:00:15]} 4. O-O {[%emt 0:00:17]} e6 {[%emt 0:00:38]} 5. c4 {[%emt 0:00:27]} c5 {[%emt 0:01:32]} 6. Nc3 {[%emt 0:01:06]} d6 {[%emt 0:07:02]} 7. Re1 {[%emt 0:01:01]} Be7 {[%emt 0:06:31]} 8. e4 {[%emt 0:01:10]} a6 {[%emt 0:06:11]} 9. d4 {[%emt 0:00:47]} cxd4 {[%emt 0:01:01]} 10. Nxd4 {[%emt 0:00:17]} Qc7 {[%emt 0:03:11]} 11. Be3 {[%emt 0:01:44]} Nbd7 {[%emt 0:02:56]} 12. Rc1 {[%emt 0:00:36]} O-O {[%emt 0:03:31]} 13. f4 {[%emt 0:00:31]} Rfe8 {[%emt 0:10:56]} 14. Bf2 {[%emt 0:10:46]} (14. g4 $16 {g5 is the strong threat.} Nc5 15. Bf2) 14... Rad8 {[%emt 0:13:12] A30: Symmetrical English: Double Fianchetto and Hedgehog.} (14... Qxc4 $2 15. e5 dxe5 16. Bxb7 (16. Nd5 Qxd5 17. Bxd5 Nxd5 $16) 16... exd4 17. Nd5 $1 {[%mdl 512]} (17. Bxd4 Bc5 $11) (17. Qxd4 Qxd4 18. Bxd4 Ra7 $11) 17... Qxd5 18. Bxd5 Nxd5 19. a3 $18 (19. Bxd4 g6 $18)) 15. Qe2 {[%emt 0:03:57]} Bf8 {[%emt 0:18:01] [#]} 16. b4 $146 {[%emt 0:06:45]} (16. Nb3 $14) ({Predecessor:} 16. e5 Bxg2 17. Kxg2 dxe5 18. fxe5 Nxe5 19. Qxe5 Qxe5 20. Rxe5 Ng4 21. Nf3 Nxe5 22. Nxe5 {1-0 (44) Rotstein,A (2500)-Fercec,N (2458) Arco 2001}) 16... g6 {[%emt 0:10:39]} (16... Rc8 $11) 17. b5 {[%emt 0:11:26][%cal Od4c6] &Bianco is more active.} e5 {[%emt 0:06:07] [#]} 18. Nd5 {[%emt 0:00:12]} (18. bxa6 $1 $16 Bxa6 19. Ndb5) 18... Bxd5 {[%emt 0:01:23]} (18... Nxd5 $11 19. cxd5 Nc5 20. fxe5 dxe5) 19. cxd5 $18 {[%emt 0:00:12]} Nc5 {[%emt 0:00:16]} 20. fxe5 {[%emt 0:02:25]} dxe5 {[%emt 0:00:49]} 21. Nc6 $36 {[%emt 0:00:12][%mdl 2048] White has strong initiative.} Ra8 {[%emt 0:00:32]} 22. bxa6 {[%emt 0:01:15]} Nxa6 {[%emt 0:01:13]} 23. Qf3 {[%emt 0:01:14]} Bg7 {[%emt 0:01:38] [#]} (23... Qd6 $142 24. Bxb6 Nd7) 24. a4 $1 {[%emt 0:00:44]} Nb8 {[%emt 0:01:39]} 25. Bf1 {[%emt 0:02:44]} Nxc6 {[%emt 0:00:43]} (25... Qb7 {might work better.} 26. Bb5 Nbd7) 26. Rxc6 {[%emt 0:00:35]} Qe7 {[%emt 0:00:12]} 27. Bb5 {[%emt 0:02:01]} ({Weaker is} 27. Rxb6 Rxa4 28. d6 (28. Bb5 Ra3 $16) 28... Qd8 $18) 27... Reb8 {[%emt 0:00:40]} 28. Rf1 {[%emt 0:05:30]} Ne8 {[%emt 0:00:38]} 29. Bxb6 {[%emt 0:00:32]} Rxb6 {[%emt 0:00:33]} 30. Rxb6 {[%emt 0:00:05]} Bf8 $2 {[%emt 0:00:29]} (30... Nd6 31. Rc6 Bf8) 31. Kh1 {[%emt 0:00:15]} Ra7 {[%emt 0:00:29]} 32. Bxe8 {[%emt 0:04:02]} Qxe8 {[%emt 0:00:06]} 33. a5 {[%emt 0:00:21][%cal Ba4a5,Ba5a6][%mdl 32]} Be7 {[%emt 0:00:55]} 34. a6 {[%emt 0:00:24]} f6 {[%emt 0:00:30]} 35. Qb3 {[%emt 0:00:41]} Bd8 {[%emt 0:00:27]} 36. Rc6 {[%emt 0:00:37][%cal Bb6c6,Bc6f6,Bf6f8][%mdl 32] Threatening mate with Qb8.} Qd7 {[%emt 0:00:30]} 37. Qb8 {[%emt 0:00:46]} Qe7 {[%emt 0:00:33]} 38. Rcxf6 {[%emt 0:00:43]} Rd7 {[%emt 0:00:29]} 39. Rf8+ {[%emt 0:00:12] Black did not feel at home in the position after the opening.  Weighted Error Value: White=0.26 (precise) /Black=0.53} 1-0

[Event "67th Mexican-ch Open 2022"]
[Site "Chihuahua"]
[Date "2022.04.14"]
[Round "3.4"]
[White "Rosales Campos, Paul"]
[Black "Salinas Herrera, Pablo"]
[Result "0-1"]
[ECO "B41"]
[WhiteElo "2039"]
[BlackElo "2517"]
[Annotator "TA"]
[PlyCount "96"]
[EventDate "2022.04.12"]
[EventType "swiss"]
[EventCountry "MEX"]
[SourceTitle "playchess.com"]
[Source "ChessBase"]
[SourceQuality "1"]
[TimeControl "5400+30"]

{[%evp 14,96,39,27,63,64,90,55,66,39,40,10,16,14,10,16,72,37,71,64,117,108,162,59,67,45,170,-23,-9,-37,-35,-53,-61,-45,-47,-42,0,0,0,-19,-20,-78,-47,-60,-52,-62,-53,-67,-41,-83,-82,-87,-86,-148,-69,-151,-122,-158,-161,-163,-168,-166,-168,-169,-149,-164,-162,-154,-143,-175,-176,-286,-286,-279,-279,-220,-52,-1133,-1095,-1106,-631,-1079,-978,-971,-900]} 1. e4 {[%emt 0:01:41]} c5 {[%emt 0:01:36]} 2. Nf3 {[%emt 0:00:32][%cal Bg1f3,Bf3d4,Bd4c2][%mdl 32]} e6 {[%emt 0:00:04]} 3. d4 {[%emt 0:05:11]} cxd4 {[%emt 0:00:05]} 4. Nxd4 {[%emt 0:00:14]} a6 {[%emt 0:00:03]} 5. c4 {[%emt 0:05:11]} Nf6 {[%emt 0:00:05]} 6. Nc3 {[%emt 0:06:07]} Qc7 {[%emt 0:01:01]} 7. Be2 {[%emt 0:01:13]} Bb4 {[%emt 0:00:06]} 8. Nc2 {[%emt 0:02:02]} Be7 {[%emt 0:11:18] B41: Sicilian: Kan Variation: 5 c4.} 9. Be3 {[%emt 0:02:44]} d6 {[%emt 0:00:14]} 10. O-O {[%emt 0:04:53]} b6 {[%emt 0:00:28] White is slightly better.} 11. f4 {[%emt 0:06:13] [#]} Bb7 $146 {[%emt 0:00:06]} ({Predecessor:} 11... O-O 12. g4 Bb7 13. Bd3 d5 14. e5 Ne4 15. Bxe4 dxe4 16. Qe2 Nd7 17. Rfd1 Nc5 18. Bxc5 Bxc5+ {0-1 (23) Sideris,T (2077)-Shavtvaladze,N (2399) Korinthos 2002}) 12. Qd3 {[%emt 0:02:23]} Nbd7 {[%emt 0:00:26]} 13. b4 {[%emt 0:08:27]} Rc8 {[%emt 0:03:35][%cal Ob6b5]} 14. Rac1 {[%emt 0:02:41]} h5 {[%emt 0:04:23]} (14... O-O $11) 15. h3 {[%emt 0:08:13]} h4 {[%emt 0:00:51]} 16. Nd4 {[%emt 0:12:14]} g6 {[%emt 0:07:53]} (16... O-O $14) 17. a3 $16 {[%emt 0:06:38]} Nh5 {[%emt 0:03:20]} (17... Qb8 $16 {was called for.}) 18. Rfd1 {[%emt 0:06:43]} (18. f5 $18 Ne5 19. Qd1) 18... Ng3 $14 {[%emt 0:01:26][%cal Og6g5]} 19. Bf3 {[%emt 0:00:08]} g5 {[%emt 0:00:55] [#]} (19... Qxc4 $2 20. Qd2 $18) (19... O-O $14) 20. e5 $2 {[%emt 0:07:45]} ({Worse is} 20. fxg5 Ne5 21. Qd2 Rg8 $15) ({Only move:} 20. Nd5 $1 $18 {[%cal Rd5c7][%mdl 512]} exd5 21. cxd5) 20... Bxf3 $1 $11 {[%emt 0:00:07]} (20... dxe5 $2 21. Nxe6 $1 fxe6 22. Qg6+ Kf8 23. Qxe6 $18) 21. exd6 {[%emt 0:04:44]} (21. Nxf3 {looks sharper.} gxf4 22. Bxf4 dxe5 23. Bxg3 hxg3 24. Ne4) 21... Qxd6 {[%emt 0:02:19]} 22. Nxf3 {[%emt 0:00:48]} Qxd3 {[%emt 0:00:06]} 23. Rxd3 {[%emt 0:00:06]} gxf4 {[%emt 0:01:46]} 24. Bxf4 {[%emt 0:01:40]} Nf6 {[%emt 0:02:30]} (24... Rxc4 $2 25. Bxg3 hxg3 {[#]} 26. Rxd7 $1 $18 {[%mdl 512]}) 25. Bxg3 {[%emt 0:01:46]} hxg3 {[%emt 0:00:05]} 26. Ne2 {[%emt 0:00:15]} Ne4 {[%emt 0:00:56]} 27. Nfd4 {[%emt 0:01:56]} (27. Kf1 $11 {remains equal.}) 27... a5 {[%emt 0:00:16]} (27... Bg5 $5 {[%cal Rg5c1]} 28. Rf1 Rxc4 $15) 28. Nxg3 {[%emt 0:00:43]} Nxg3 {[%emt 0:00:06]} 29. Rxg3 {[%emt 0:00:03]} axb4 {[%emt 0:00:05]} 30. axb4 {[%emt 0:00:09]} Bxb4 {[%emt 0:00:20] And now ...Bc5 would win.} 31. Nb5 {[%emt 0:00:47]} Ke7 {[%emt 0:02:55]} 32. Rb3 {[%emt 0:01:26]} Bc5+ {[%emt 0:00:08]} 33. Kf1 {[%emt 0:00:38]} ({White should play} 33. Kh2) 33... Rcd8 {[%emt 0:00:46]} ({Better is} 33... Rh4 $17 34. Rf3 f5) 34. Ke2 {[%emt 0:00:37]} (34. Nc3 $1 $15) 34... Rh5 {[%emt 0:00:10]} 35. Rc2 {[%emt 0:00:32]} Rf5 {[%emt 0:00:12] ( -> ...Rf2+). &Nero is more active.} 36. Ke1 {[%emt 0:00:31] Inhibits Rf2.} Rf4 {[%emt 0:00:23]} 37. g3 {[%emt 0:00:28]} Re4+ {[%emt 0:00:06]} 38. Kf1 {[%emt 0:00:15]} Rd1+ {[%emt 0:00:37]} 39. Kg2 {[%emt 0:00:05]} f5 {[%emt 0:01:30]} 40. h4 {[%emt 0:00:48]} Rg1+ {[%emt 0:00:07]} 41. Kh3 {[%emt 0:00:43]} Rh1+ {[%emt 0:00:36]} 42. Kg2 {[%emt 0:00:05]} (42. Rh2 $142 Rxh2+ 43. Kxh2) 42... Ree1 $19 {[%emt 0:01:30]} 43. Nc3 {[%emt 0:01:01]} Rhg1+ {[%emt 0:01:48]} 44. Kh2 {[%emt 0:00:05]} e5 $2 {[%emt 0:08:15]} (44... Kf7 $19 45. Rcb2 Rh1+ 46. Kg2 Reg1+ 47. Kf3 Rf1+ 48. Kg2 Rfg1+ 49. Kf3 Rh3) 45. Na4 $2 {[%emt 0:00:57][%mdl 8192]} (45. Kh3 $15) 45... Rh1+ {[%emt 0:07:05] Black is clearly winning.} 46. Kg2 {[%emt 0:00:05]} Reg1+ {[%emt 0:00:07]} 47. Kf3 {[%emt 0:00:17]} Rh3 {[%emt 0:00:56]} 48. Rg2 {[%emt 0:01:10]} e4+ {[%emt 0:00:05] Weighted Error Value: White=0.40/Black=0.27 (precise)} 0-1

[Event "67th Mexican-ch Open 2022"]
[Site "Chihuahua"]
[Date "2022.04.14"]
[Round "3.5"]
[White "Quesada Perez, Luis Ernesto"]
[Black "Sandoval Mercado, Carlos"]
[Result "0-1"]
[ECO "E20"]
[WhiteElo "2517"]
[BlackElo "2289"]
[Annotator "TA"]
[PlyCount "44"]
[EventDate "2022.04.12"]
[EventType "swiss"]
[EventCountry "MEX"]
[SourceTitle "playchess.com"]
[Source "ChessBase"]
[SourceQuality "1"]
[TimeControl "5400+30"]

{[%evp 21,44,7,22,22,28,25,13,27,56,72,62,47,90,0,0,0,0,-89,-103,-87,-93,-450,-450,-29984,-29984]} 1. d4 {[%emt 0:00:04]} Nf6 {[%emt 0:00:06]} 2. c4 {[%emt 0:00:11]} c5 {[%emt 0:00:26]} 3. Nf3 {[%emt 0:00:20]} cxd4 {[%emt 0:01:11]} 4. Nxd4 {[%emt 0:00:08]} e6 {[%emt 0:00:24]} 5. g3 {[%emt 0:04:23]} d5 {[%emt 0:05:30]} 6. Bg2 {[%emt 0:00:06]} Bb4+ {[%emt 0:02:12]} 7. Nc3 {[%emt 0:14:15]} O-O {[%emt 0:05:21]} 8. cxd5 {[%emt 0:18:25]} Nxd5 {[%emt 0:01:53]} 9. Bd2 {[%emt 0:07:27]} Nxc3 {[%emt 0:06:58]} 10. bxc3 {[%emt 0:00:19]} Be7 {[%emt 0:00:04]} 11. Rb1 {[%emt 0:01:29]} e5 {[%emt 0:06:12][%cal Be6e5,Be5d4][%mdl 32] [#]} 12. Rxb7 $1 {[%emt 0:05:50][%cal Ob7b1] E20: Nimzo-Indian: 4 g3 and 4 f3.} exd4 {[%emt 0:30:41]} 13. Rb3 {[%emt 0:02:18]} Na6 {[%emt 0:14:44] White must now prevent ...Be6.} 14. Bxa8 {[%emt 0:00:21] cxd4 is the strong threat. The position is equal.} Bh3 {[%emt 0:00:03]} 15. Bf3 {[%emt 0:02:51]} Nc5 {[%emt 0:02:35]} 16. Rb1 {[%emt 0:10:58]} Bf6 {[%emt 0:08:25]} 17. cxd4 {[%emt 0:00:22]} ({Better is} 17. c4 $1 $16) 17... Bxd4 $11 {[%emt 0:00:02] [#]} 18. Qc2 $146 {[%emt 0:10:03] Hoping for Bb4.} ({Predecessor:} 18. e3 Nd3+ 19. Ke2 Ne5 20. Be4 Qf6 21. f3 Bg2 22. Rf1 Qa6+ 23. Kf2 Bxf1 24. exd4 {1-0 (45) Stocek,J (2450)-Estremera Panos,S (2400) Ubeda 1998}) 18... Qf6 {[%emt 0:01:10] Strongly threatening ...Re8.} 19. Rb5 {[%emt 0:11:58] [#]} (19. Rc1 $11 {remains equal.}) 19... Re8 $1 $17 {[%emt 0:02:00] ( -> ...Qxf3)} 20. Kd1 {[%emt 0:02:56] [#]} Bd7 $1 {[%emt 0:03:35] &Nero is more active.} 21. Rxc5 {[%emt 0:01:05][%mdl 8192]} (21. Rb4 $17 {is a better chance.}) 21... Bxc5 $19 {[%emt 0:00:03]} 22. Qxc5 {[%emt 0:00:18]} (22. Qc3 $19 Qb6 23. Bd5) 22... Ba4+ {[%emt 0:00:19] Weighted Error Value: White=1.13/Black=0.07 (flawless)} 0-1

[Event "67th Mexican-ch Open 2022"]
[Site "Chihuahua"]
[Date "2022.04.14"]
[Round "3.6"]
[White "Rascon Vega, Alfonso"]
[Black "Cori Quispe, Kevin Joel"]
[Result "0-1"]
[ECO "B50"]
[WhiteElo "2107"]
[BlackElo "2492"]
[Annotator "TA"]
[PlyCount "66"]
[EventDate "2022.04.12"]
[EventType "swiss"]
[EventCountry "MEX"]
[SourceTitle "playchess.com"]
[Source "ChessBase"]
[SourceQuality "1"]
[TimeControl "5400+30"]

{[%evp 13,66,11,14,0,1,-9,24,-27,26,31,14,-11,25,-4,62,24,60,-3,-1,-22,-16,-32,-13,-28,-25,-50,-28,-97,-52,-95,-81,-82,-77,-83,-43,-68,-31,-74,-45,-58,-66,-97,-101,-205,-209,-220,-143,-243,-233,-508,-497,-504,-499,-532,-524]} 1. e4 {[%emt 0:04:17]} c5 {[%emt 0:00:55]} 2. Nf3 {[%emt 0:00:23]} e6 {[%emt 0:00:28]} 3. g3 {[%emt 0:00:38]} Nc6 {[%emt 0:00:50]} 4. Bg2 {[%emt 0:00:21]} Nf6 {[%emt 0:00:14]} 5. d3 {[%emt 0:00:40]} d6 {[%emt 0:05:37]} 6. O-O {[%emt 0:00:44]} Be7 {[%emt 0:00:11]} 7. Nc3 {[%emt 0:01:11]} O-O {[%emt 0:01:11]} 8. Bf4 {[%emt 0:00:29] B50: Sicilian: 2...d6, Miscellaneous.} Nd7 {[%emt 0:05:06][%cal Bf6d7,Bd7b6,Bb6d5,Bd5f4][%mdl 32] [#]} 9. h4 $146 {[%emt 0:06:15]} ({Predecessor:} 9. h3 a6 10. Nh2 b5 11. Ne2 Bb7 12. Be3 Nb6 13. Nf4 a5 14. h4 a4 15. a3 b4 {½-½ (26) Brynell,S (2470)-Engqvist,T (2420) Lindesberg 1993}) 9... e5 {[%emt 0:03:04]} 10. Bg5 {[%emt 0:03:08]} (10. Bc1 $142) 10... f6 {[%emt 0:00:10]} (10... Bxg5 $142 11. hxg5 (11. Nxg5 Nf6 $11) 11... f6) 11. Bc1 $11 {[%emt 0:00:46]} Nb6 {[%emt 0:00:06]} 12. Nd2 {[%emt 0:00:26]} Be6 {[%emt 0:06:32]} 13. Nd5 {[%emt 0:14:28]} (13. a4 $5 {[%cal Ra4a5]}) 13... Bf7 {[%emt 0:10:55]} (13... Nb4 $11) 14. c3 {[%emt 0:02:43]} Re8 {[%emt 0:12:08]} 15. Ne3 {[%emt 0:03:39]} (15. Nc4 $14) 15... d5 {[%emt 0:03:30]} 16. exd5 {[%emt 0:01:25]} Nxd5 {[%emt 0:00:08]} 17. Ne4 {[%emt 0:57:27]} Qd7 {[%emt 0:47:55] Inhibits Nf5.} 18. Qf3 {[%emt 0:00:00] [#] Inhibits f5. Threatens to win with Nxd5.} Rad8 {[%emt 0:00:00]} 19. Nf5 {[%emt 0:00:00]} Be6 {[%emt 0:00:00]} 20. Bh3 {[%emt 0:00:00]} (20. g4 $11 {keeps the balance.}) 20... Bf8 {[%emt 0:00:00]} 21. g4 {[%emt 0:00:00] [#]} Nf4 $1 {[%emt 0:00:00]} 22. Bxf4 {[%emt 0:00:00]} exf4 {[%emt 0:00:00]} 23. Qxf4 {[%emt 0:00:00]} Bxf5 {[%emt 0:00:00]} 24. gxf5 {[%emt 0:00:00]} Qxd3 {[%emt 0:00:00]} 25. Bg2 {[%emt 0:00:00]} Ne5 {[%emt 0:00:00][%cal Bc6e5,Be5f7,Bf7h6][%mdl 32]} 26. Rae1 {[%emt 0:00:00]} Qc2 {[%emt 0:00:00] aiming for ...Nd3.} 27. Re3 {[%emt 0:00:00]} Qxb2 {[%emt 0:00:00] &Nero is more active.} 28. Rg3 {[%emt 0:00:00]} (28. Qg3 $17 {is a better defense.} Kh8 29. Rfe1) 28... Kh8 $19 {[%emt 0:00:00]} 29. h5 {[%emt 0:00:00][%cal Oh5h6]} Nf7 {[%emt 0:00:00] Inhibits h6.} ({Not} 29... Qxa2 30. h6 $17) 30. h6 {[%emt 0:00:00]} (30. Qc7 $17 {was called for.} Qxa2 31. Qxb7) 30... Nxh6 {[%emt 0:00:00]} 31. Nxf6 $2 {[%emt 0:00:00]} (31. Rh3) 31... gxf6 {[%emt 0:00:00] Black is clearly winning.} 32. Qh4 {[%emt 0:00:00]} Bg7 {[%emt 0:00:00]} 33. Qh5 {[%emt 0:00:00]} Qxa2 {[%emt 0:00:00] Weighted Error Value: White=0.44/Black=0.21 (precise)} 0-1

[Event "67th Mexican-ch Open 2022"]
[Site "Chihuahua"]
[Date "2022.04.14"]
[Round "3.7"]
[White "Ibarra Chami, Luis Fernando"]
[Black "Gonzalez Arroyo, Lenin"]
[Result "1-0"]
[ECO "C77"]
[WhiteElo "2451"]
[BlackElo "2210"]
[Annotator "TA"]
[PlyCount "87"]
[EventDate "2022.04.12"]
[EventType "swiss"]
[EventCountry "MEX"]
[SourceTitle "playchess.com"]
[Source "ChessBase"]
[SourceQuality "1"]
[TimeControl "5400+30"]

{[%evp 16,87,8,0,20,16,38,38,38,38,39,37,40,35,51,48,40,39,48,43,112,41,46,47,45,40,38,43,42,42,63,37,53,42,39,35,39,30,30,0,0,0,0,0,76,75,105,104,99,60,112,112,209,185,216,216,216,219,301,295,384,325,528,523,509,458,495,473,1049,994,986,929,737,656]} 1. e4 {[%emt 0:01:10]} e5 {[%emt 0:00:25]} 2. Nf3 {[%emt 0:00:22]} Nc6 {[%emt 0:00:30]} 3. Bb5 {[%emt 0:00:31]} a6 {[%emt 0:01:19]} 4. Ba4 {[%emt 0:00:17]} Nf6 {[%emt 0:00:28]} 5. O-O {[%emt 0:01:02]} Be7 {[%emt 0:00:48]} 6. d3 {[%emt 0:02:34]} b5 {[%emt 0:00:49]} 7. Bb3 {[%emt 0:00:05]} d6 {[%emt 0:00:52]} 8. a3 {[%emt 0:03:21]} O-O {[%emt 0:01:23]} 9. Nc3 {[%emt 0:00:53]} Be6 {[%emt 0:06:24] C77: Ruy Lopez: 3...a6 4 Ba4 Nf6, unusual lines.} 10. Nd5 {[%emt 0:02:18]} Na5 {[%emt 0:04:25]} 11. Nxf6+ {[%emt 0:04:59]} Bxf6 {[%emt 0:00:19] White is slightly better.} 12. Bxe6 {[%emt 0:00:16]} fxe6 {[%emt 0:00:07]} 13. b4 {[%emt 0:00:35]} Nc6 {[%emt 0:03:43]} 14. c3 {[%emt 0:02:00]} Qd7 {[%emt 0:11:28]} 15. a4 {[%emt 0:12:13]} Ne7 {[%emt 0:03:11]} 16. Qb3 {[%emt 0:08:58]} d5 {[%emt 0:09:20]} 17. Be3 {[%emt 0:05:19] [#]} d4 $146 {[%emt 0:06:25]} ({Black should try} 17... Ng6 $14) ({Predecessor:} 17... Ng6 18. Ra2 Be7 19. axb5 axb5 20. Rfa1 Rad8 21. Ne1 h6 22. g3 Kh7 23. Ra7 Rf6 {½-½ (50) Zelbel,P (2432)-Postny,E (2653) Germany 2016}) 18. Bg5 {[%emt 0:25:45]} (18. cxd4 $16 exd4 19. Bf4) 18... bxa4 {[%emt 0:09:54]} 19. Qxa4 {[%emt 0:03:46]} Qxa4 {[%emt 0:00:35]} 20. Rxa4 {[%emt 0:00:03] cxd4 is the strong threat.} dxc3 {[%emt 0:00:11]} 21. Rc1 {[%emt 0:00:18]} Rfb8 $1 {[%emt 0:04:03][%cal Oc7c5]} (21... Bxg5 22. Nxg5 c5 23. bxc5 $16) 22. Rxc3 {[%emt 0:09:57]} a5 $1 {[%emt 0:00:39]} 23. Rxc7 {[%emt 0:01:45] &Bianco is more active.} axb4 {[%emt 0:01:14]} 24. Rxa8 {[%emt 0:00:03]} Rxa8 {[%emt 0:00:10]} 25. Kf1 {[%emt 0:04:53]} Bxg5 {[%emt 0:07:48]} 26. Nxg5 $14 {[%emt 0:00:04][%mdl 4096] Endgame KRN-KRN} b3 $1 {[%emt 0:00:06] [#] Threatens to win with ...b2.} 27. Rb7 {[%emt 0:00:19]} (27. Rxe7 b2 28. Rb7 Ra1+ 29. Ke2 b1=Q 30. Rxb1 Rxb1 $15) (27. Ke2 $5 {[%cal Rc7e7]} Rb8 28. Rc1 $11 (28. Rxe7 $2 b2 $19)) 27... Nc6 $1 {[%emt 0:00:37]} 28. Ke2 {[%emt 0:04:23]} ({But not} 28. Rxb3 $2 Ra1+ 29. Ke2 Nd4+ 30. Ke3 Nxb3 $19) (28. Nxe6 $2 Rb8 29. Rxb3 (29. Rxg7+ $2 Kh8 $19) 29... Rxb3 $19) 28... Nd4+ {[%emt 0:05:31]} 29. Ke3 {[%emt 0:00:02]} h6 {[%emt 0:02:27]} (29... Nc2+ $1 $11 {remains equal.} 30. Kf3 Rf8+ 31. Ke2 Nd4+ 32. Ke3 Nc2+ 33. Ke2 Nd4+ 34. Ke3 Nc2+ 35. Ke2) 30. Nf3 $16 {[%emt 0:00:01]} Nxf3 {[%emt 0:01:25]} 31. Kxf3 {[%emt 0:02:47] KR-KR} Ra3 {[%emt 0:00:30]} 32. Ke3 {[%emt 0:00:07]} Kh7 {[%emt 0:00:43]} (32... g5 $1 $14) 33. Rb5 {[%emt 0:00:14]} Kg8 {[%emt 0:04:11]} (33... Ra1 $16 {was called for.}) 34. Rxe5 $18 {[%emt 0:00:11]} b2 {[%emt 0:03:18]} 35. Rb5 {[%emt 0:00:03]} Ra2 {[%emt 0:00:20]} 36. h4 {[%emt 0:00:49][%cal Bh2h4,Bh4h5][%mdl 32] Inhibits g5.} Kf7 {[%emt 0:00:11]} 37. h5 {[%emt 0:00:28]} Kf6 {[%emt 0:03:08]} 38. g4 {[%emt 0:00:39] [#] Hoping for f4.} Ke7 $2 {[%emt 0:04:52]} (38... g5 39. hxg6 Kg7) 39. f4 {[%emt 0:01:12] White is clearly winning.} Kd6 {[%emt 0:00:31]} 40. Kd4 {[%emt 0:00:39]} Kc6 {[%emt 0:00:44]} 41. Rb3 {[%emt 0:00:06]} b1=Q {[%emt 0:02:49]} (41... Kd6 $142 42. Kc3 e5) 42. Rxb1 {[%emt 0:00:03]} Rg2 {[%emt 0:00:07]} 43. Ke5 {[%emt 0:00:21]} Rxg4 {[%emt 0:00:06]} 44. d4 {[%emt 0:00:52] Weighted Error Value: White=0.04 (flawless) /Black=0.27 (precise)} 1-0

[Event "67th Mexican-ch Open 2022"]
[Site "Chihuahua"]
[Date "2022.04.14"]
[Round "3.8"]
[White "Avila Rodriguez, Joshua Ad"]
[Black "Cori, Jorge"]
[Result "0-1"]
[ECO "C18"]
[WhiteElo "2182"]
[BlackElo "2650"]
[Annotator "TA"]
[PlyCount "66"]
[EventDate "2022.04.12"]
[EventType "swiss"]
[EventCountry "MEX"]
[SourceTitle "playchess.com"]
[Source "ChessBase"]
[SourceQuality "1"]
[TimeControl "5400+30"]

{[%evp 15,66,9,8,-15,0,0,7,0,2,3,1,-31,-25,-49,-63,-96,-95,-99,-93,-118,-116,-164,-156,-155,-145,-147,-138,-179,-186,-229,-221,-188,-176,-191,-171,-233,-218,-568,-546,-558,-549,-606,-596,-799,-800,-791,-772,-926,-904,-1049,-1033,-967,-894]} 1. e4 {[%emt 0:00:08]} e6 {[%emt 0:00:16]} 2. d4 {[%emt 0:00:11]} d5 {[%emt 0:00:04]} 3. Nc3 {[%emt 0:00:09]} Bb4 {[%emt 0:01:44]} 4. e5 {[%emt 0:00:24]} c5 {[%emt 0:00:07]} 5. a3 {[%emt 0:00:09]} Bxc3+ {[%emt 0:00:04]} 6. bxc3 {[%emt 0:00:06]} Qa5 {[%emt 0:00:04]} 7. Bd2 {[%emt 0:00:35]} Qa4 {[%emt 0:00:27]} 8. Qg4 {[%emt 0:00:34]} Kf8 {[%emt 0:01:43]} 9. h4 {[%emt 0:00:58] is more profitable than 9.Qd1 at the moment. C18: French: 3 Nc3 Bb4: Main line: 7 h4 and 7 Qg4.} Nc6 {[%emt 0:00:14] [#]} 10. Qf4 $146 {[%emt 0:04:58]} ({Predecessor:} 10. Rh3 Nge7 11. h5 h6 12. Qf4 Ke8 13. dxc5 Qxf4 14. Bxf4 f6 15. Nf3 g5 16. hxg6 Nxg6 17. Rxh6 Rxh6 18. Bxh6 fxe5 {1-0 (43) Nisipeanu,L (2671)-Suleymanli,A (2536) Reykjavik 2021}) 10... Qxc2 {[%emt 0:07:04]} 11. dxc5 {[%emt 0:02:44] The position is equal.} Qe4+ {[%emt 0:08:41]} 12. Qxe4 {[%emt 0:16:24]} dxe4 {[%emt 0:00:07]} 13. h5 {[%emt 0:16:55]} Nxe5 {[%emt 0:07:27]} 14. Rh4 {[%emt 0:00:14]} f5 {[%emt 0:03:53]} 15. Bf4 {[%emt 0:01:19] [#]} Nf7 {[%emt 0:00:29]} 16. Bc4 {[%emt 0:02:05]} Nf6 {[%emt 0:03:26]} 17. Rd1 {[%emt 0:07:55]} Bd7 {[%emt 0:29:36]} 18. Rb1 {[%emt 0:16:33]} (18. Nh3 $17) 18... Ke7 {[%emt 0:05:11]} 19. Rxb7 {[%emt 0:07:20]} Rhc8 {[%emt 0:00:07]} 20. Be3 {[%emt 0:00:58]} Nd8 {[%emt 0:03:51]} 21. Rb1 {[%emt 0:08:27]} Rab8 {[%emt 0:00:07]} 22. Rd1 {[%emt 0:02:02]} Ba4 {[%emt 0:00:34]} 23. Ra1 {[%emt 0:01:40]} Nf7 {[%emt 0:01:59][%cal Bd8f7,Bf7e5,Be5g4][%mdl 32]} 24. f3 {[%emt 0:03:35]} Rb2 {[%emt 0:00:51]} 25. Ra2 {[%emt 0:02:13]} (25. fxe4 $142 Nxe4 26. Nf3) 25... Rcb8 {[%emt 0:00:51]} 26. g4 $2 {[%emt 0:04:11] [#]} (26. Rxb2 {is more resistant.} Rxb2 27. f4) 26... Rb1+ $19 {[%emt 0:02:51] Black is clearly winning.} 27. Kf2 {[%emt 0:00:22]} Ne5 {[%emt 0:00:05][%csl LRc4,LRg4]} 28. Be2 {[%emt 0:00:35]} exf3 {[%emt 0:00:05]} 29. Nxf3 {[%emt 0:00:40]} Nexg4+ {[%emt 0:01:40] Pair of Knights!} 30. Kg3 {[%emt 0:00:25]} Bb3 {[%emt 0:00:11]} 31. Bf4 {[%emt 0:00:39]} Ne4+ {[%emt 0:00:09]} 32. Kg2 {[%emt 0:00:24]} Bxa2 {[%emt 0:00:08]} 33. Bxb8 {[%emt 0:00:25]} Rxb8 {[%emt 0:00:06] White got outplayed after the opening.  Weighted Error Value: White=0.55/Black=0.03 (flawless)} 0-1